bitfinex-derivatives/quotes_BTCF0:USTF0_20250320
["timestamp","ask_amount","ask_price","bid_price","bid_amount"]
[1742507034957,0.00217606,84560.0,84559.0,0.1818173]
[1742507040561,4e-05,84561.0,84559.0,0.1818173]
[1742507040562,4e-05,84561.0,84560.0,0.1183159]
[1742507040754,0.33081877,84572.0,84571.0,0.1183006]
[1742507040954,0.21251957,84572.0,84571.0,0.5953006]
[1742507041155,0.21251957,84572.0,84571.0,0.6871006]
[1742507041958,0.004,84572.0,84571.0,0.6871006]
[1742507043567,0.008,84572.0,84571.0,0.6871006]
[1742507044355,0.1262992,84572.0,84571.0,0.6879006]
[1742507044560,0.1902992,84572.0,84571.0,0.6879006]
[1742507045158,0.1902992,84572.0,84571.0,0.5709006]
[1742507045561,0.1902992,84572.0,84571.0,0.0612]
[1742507045757,0.2210992,84572.0,84571.0,0.0612]
[1742507045973,0.2210992,84572.0,84571.0,0.0306]
[1742507046157,0.1183089,84565.0,84563.0,0.00017746]
[1742507046359,0.1815103,84564.0,84563.0,0.11848916]
[1742507046560,0.19315812,84564.0,84563.0,0.00017746]
[1742507047166,0.1183187,84558.0,84548.0,0.0591663]
[1742507047359,0.1183187,84558.0,84544.0,0.4778]
[1742507047666,0.1183271,84552.0,84544.0,0.3614]
[1742507047968,0.5961271,84552.0,84542.0,0.1183408]
[1742507048165,0.6586271,84552.0,84541.0,0.1489417]
[1742507048359,0.6586271,84552.0,84543.0,0.35511538]
[1742507048762,0.6586271,84552.0,84551.0,0.28285999]
[1742507049067,0.6589871,84552.0,84551.0,0.28285999]
[1742507049859,0.6589871,84552.0,84551.0,0.001]
[1742507050265,0.6589871,84552.0,84551.0,0.002]
[1742507051864,0.1183383,84544.0,84543.0,0.00017746]
[1742507052063,0.2358583,84544.0,84543.0,0.00017746]
[1742507052261,0.2979583,84544.0,84543.0,0.00017746]
[1742507054276,0.2989583,84544.0,84543.0,0.00017746]
[1742507055977,0.3290583,84544.0,84543.0,0.00017746]
[1742507058778,0.6898583,84544.0,84543.0,0.00017746]
[1742507059271,0.6898583,84544.0,84543.0,0.03147746]
[1742507061380,0.6898583,84544.0,84543.0,0.06317746]
[1742507062082,0.6898583,84544.0,84543.0,0.06417746]
[1742507062471,0.6898583,84544.0,84543.0,0.06317746]
[1742507063482,0.5723383,84544.0,84543.0,0.06317746]
[1742507063683,0.6896183,84544.0,84543.0,0.06317746]
[1742507064183,0.6886183,84544.0,84543.0,0.06317746]
[1742507064588,0.5963783,84544.0,84543.0,0.06317746]
[1742507064788,0.6610783,84544.0,84543.0,0.06317746]
[1742507065983,0.3003983,84544.0,84543.0,0.06317746]
[1742507067087,0.3003983,84544.0,84543.0,0.18151716]
[1742507067382,0.2356983,84544.0,84543.0,0.18151716]
[1742507068380,4e-05,84545.0,84544.0,0.1183383]
[1742507068689,0.1183289,84551.0,84550.0,0.1183299]
[1742507068888,0.1183289,84551.0,84550.0,0.1810299]
[1742507069092,0.1183231,84556.0,84555.0,0.1183229]
[1742507069485,0.1183231,84556.0,84555.0,0.2141229]
[1742507069890,0.1764401,84557.0,84556.0,0.1183215]
[1742507070192,0.2356001,84557.0,84556.0,0.1826215]
[1742507070391,0.2356801,84557.0,84556.0,0.1826215]
[1742507070782,0.2356001,84557.0,84556.0,0.1826215]
[1742507070988,0.40904,84558.0,84557.0,0.1183201]
[1742507071190,0.40904,84558.0,84557.0,0.1826201]
[1742507071694,0.409,84558.0,84557.0,0.1826201]
[1742507072194,0.412,84558.0,84557.0,0.1826201]
[1742507073693,0.416,84558.0,84557.0,0.1826201]
[1742507074690,0.007,84558.0,84557.0,0.1826201]
[1742507079103,0.1253187,84558.0,84557.0,0.1826201]
[1742507079299,0.1253187,84558.0,84557.0,0.0643]
[1742507079900,0.1878187,84558.0,84557.0,0.0322]
[1742507080105,0.19953108,84558.0,84557.0,0.0322]
[1742507080905,0.13703108,84558.0,84557.0,0.0322]
[1742507081401,0.1183243,84554.0,84553.0,0.0331]
[1742507081602,0.1183243,84554.0,84544.0,0.0309]
[1742507081603,0.1183369,84545.0,84544.0,0.0309]
[1742507081804,0.1183383,84544.0,84533.0,0.28185999]
[1742507082101,0.0591779,84532.0,84523.0,0.42209841]
[1742507082306,0.4791593,84529.0,84524.0,0.0629]
[1742507082699,0.5440593,84529.0,84524.0,0.0629]
[1742507083098,0.55582623,84529.0,84524.0,0.0629]
[1742507083298,0.55582623,84529.0,84524.0,0.0309]
[1742507083899,0.55582623,84529.0,84528.0,0.001]
[1742507084104,0.1183649,84525.0,84524.0,0.0309]
[1742507085399,0.1183705,84521.0,84520.0,0.00017746]
[1742507086208,0.1485705,84521.0,84520.0,0.00017746]
[1742507086398,0.1805705,84521.0,84520.0,0.00017746]
[1742507086712,0.1805705,84521.0,84518.0,0.0314]
[1742507086713,0.1183733,84519.0,84518.0,0.0314]
[1742507087410,0.1183733,84519.0,84518.0,0.03144]
[1742507087809,0.1183733,84519.0,84514.0,4e-05]
[1742507087810,0.1183817,84513.0,84512.0,0.0321]
[1742507088012,0.1183817,84513.0,84512.0,0.03214]
[1742507088307,0.5424817,84513.0,84512.0,0.03214]
[1742507088697,0.5424817,84513.0,84512.0,0.0321]
[1742507089212,0.5434817,84513.0,84512.0,0.0331]
[1742507089907,0.5444817,84513.0,84512.0,0.0331]
[1742507090915,0.5444817,84513.0,84512.0,0.0655]
[1742507091603,0.5434817,84513.0,84512.0,0.0655]
[1742507091807,0.5109817,84513.0,84512.0,0.0655]
[1742507092299,0.4791817,84513.0,84512.0,0.0655]
[1742507092507,0.3608,84513.0,84512.0,0.1838831]
[1742507093207,0.1183817,84513.0,84512.0,0.5446831]
[1742507102723,4e-05,84514.0,84513.0,0.1183817]
[1742507102907,0.1184203,84514.0,84513.0,0.1828817]
[1742507104515,0.1184203,84514.0,84513.0,0.1838817]
[1742507107421,0.1184203,84514.0,84513.0,0.2338817]
[1742507110120,0.1184203,84514.0,84513.0,0.24883298]
[1742507114125,0.1508203,84514.0,84513.0,0.24883298]
[1742507114721,0.1508203,84514.0,84513.0,0.2338817]
[1742507115127,0.1508203,84514.0,84513.0,0.24885826]
[1742507115632,0.1826203,84514.0,84513.0,0.24885826]
[1742507116331,0.1826203,84514.0,84513.0,0.2338817]
[1742507116924,0.1184203,84514.0,84513.0,0.2338817]
[1742507117124,0.1184203,84514.0,84513.0,0.24885553]
[1742507118632,0.1788203,84514.0,84513.0,0.24885553]
[1742507120022,0.1788203,84514.0,84513.0,0.24885981]
[1742507120224,0.1788203,84514.0,84513.0,0.24886006]
[1742507121628,0.06044,84514.0,84513.0,0.24886006]
[1742507121820,0.03034,84514.0,84513.0,0.24886006]
[1742507122227,0.03034,84514.0,84513.0,0.24893858]
[1742507123328,0.21184571,84520.0,84519.0,0.1183733]
[1742507123529,0.21184571,84520.0,84519.0,0.13343018]
[1742507123728,0.21184571,84520.0,84519.0,0.58973018]
[1742507124738,0.21184571,84522.0,84521.0,0.1183705]
[1742507124943,0.21184571,84522.0,84521.0,0.19802738]
[1742507125135,0.27514571,84522.0,84521.0,0.19802738]
[1742507128129,0.0633,84522.0,84521.0,0.19902738]
[1742507128524,0.0633,84522.0,84521.0,0.19902601]
[1742507128936,0.0633,84522.0,84521.0,0.19802601]
[1742507129139,0.0633,84522.0,84521.0,0.19902601]
[1742507130344,0.1816691,84522.0,84521.0,0.19902601]
[1742507133140,0.1816691,84522.0,84521.0,0.13442601]
[1742507133943,0.1816691,84522.0,84521.0,0.16692601]
[1742507134130,0.1816691,84522.0,84521.0,0.19982601]
[1742507134834,0.0633,84522.0,84521.0,0.19982601]
[1742507135030,0.0317,84522.0,84521.0,0.19982601]
[1742507136136,0.0636,84522.0,84521.0,0.19982601]
[1742507138550,0.1819691,84522.0,84521.0,0.16692601]
[1742507138748,0.2119691,84522.0,84521.0,0.13442601]
[1742507139157,0.2119691,84522.0,84521.0,0.16732601]
[1742507139445,0.1819691,84522.0,84521.0,0.19792601]
[1742507142952,0.1819691,84522.0,84521.0,0.1828705]
[1742507143148,0.1819691,84522.0,84521.0,0.1981123]
[1742507146848,0.1819691,84522.0,84521.0,0.22271659]
[1742507148852,0.1819691,84522.0,84521.0,0.1981123]
[1742507149156,0.1819691,84522.0,84521.0,0.22267703]
[1742507149355,0.1819691,84522.0,84521.0,0.1981123]
[1742507149855,0.0636,84522.0,84521.0,0.1981123]
[1742507150153,0.1819691,84522.0,84521.0,0.1981123]
[1742507151350,0.1819691,84522.0,84521.0,0.1828705]
[1742507152249,0.0636,84522.0,84521.0,0.1828705]
[1742507153457,0.0636,84522.0,84521.0,0.19774669]
[1742507153758,0.1819691,84522.0,84521.0,0.19774669]
[1742507154156,0.1500691,84522.0,84521.0,0.19774669]
[1742507154454,0.0317,84522.0,84521.0,0.19774669]
[1742507154859,0.0317,84522.0,84521.0,0.20960643]
[1742507155054,0.0642,84522.0,84521.0,0.20960643]
[1742507155466,0.0642,84522.0,84521.0,0.20950958]
[1742507156157,0.1825691,84522.0,84521.0,0.20950958]
[1742507156352,0.1825691,84522.0,84521.0,0.19764984]
[1742507156953,0.1500691,84522.0,84521.0,0.19764984]
[1742507157559,0.1500691,84522.0,84521.0,0.1828705]
[1742507157761,0.1811691,84522.0,84521.0,0.1828705]
[1742507161365,0.19313916,84522.0,84521.0,0.1828705]
[1742507163558,0.07477006,84522.0,84521.0,0.1828705]
[1742507163867,0.19313916,84522.0,84521.0,0.1828705]
[1742507171071,0.37052725,84522.0,84521.0,0.1828705]
[1742507173764,0.37052725,84522.0,84521.0,0.0645]
[1742507173960,0.37052725,84522.0,84521.0,0.1828705]
[1742507174160,0.37052725,84522.0,84521.0,0.0645]
[1742507174575,0.19313916,84522.0,84521.0,0.0645]
[1742507174873,0.19313916,84522.0,84521.0,0.0339]
[1742507176069,0.19313916,84522.0,84521.0,0.001]
[1742507176271,0.31013916,84522.0,84521.0,0.001]
[1742507185985,0.4226716,84522.0,84521.0,0.001]
[1742507189593,0.31013916,84522.0,84521.0,0.001]
[1742507190691,0.1183747,84518.0,84517.0,0.03064]
[1742507191087,0.1824747,84518.0,84517.0,0.03064]
[1742507191992,0.1824747,84518.0,84517.0,0.03164]
[1742507192397,0.35947405,84518.0,84517.0,0.03164]
[1742507195488,0.32837405,84518.0,84517.0,0.03164]
[1742507195697,0.1513747,84518.0,84517.0,0.03164]
[1742507196005,0.1846747,84518.0,84517.0,0.03164]
[1742507197303,0.2152747,84518.0,84517.0,0.03164]
[1742507198401,0.1846747,84518.0,84517.0,0.03164]
[1742507199711,0.39707392,84518.0,84517.0,0.03164]
[1742507202108,0.1184056,84496.0,84489.0,0.0592073]
[1742507202414,0.1184056,84496.0,84492.0,0.0319]
[1742507202608,0.1516056,84496.0,84492.0,0.0319]
[1742507202914,0.16347743,84496.0,84492.0,0.0319]
[1742507203207,0.16347743,84496.0,84492.0,0.24496692]
[1742507203408,0.16347743,84496.0,84493.0,0.0619]
[1742507203409,0.19757743,84496.0,84493.0,0.0619]
[1742507203602,0.1184084,84494.0,84493.0,0.0619]
[1742507203802,0.1184084,84494.0,84493.0,0.094]
[1742507204004,0.1516084,84494.0,84493.0,0.094]
[1742507204301,0.1847084,84494.0,84493.0,0.094]
[1742507204812,0.1857084,84494.0,84493.0,0.094]
[1742507205709,0.1847084,84494.0,84493.0,0.094]
[1742507206413,0.1857084,84494.0,84493.0,0.094]
[1742507207018,0.1847084,84494.0,84493.0,0.094]
[1742507207813,0.1847084,84494.0,84487.0,0.00021746]
[1742507207814,0.1184168,84488.0,84487.0,0.00021746]
[1742507208011,0.2350568,84488.0,84487.0,0.00021746]
[1742507208210,0.2975568,84488.0,84487.0,0.00021746]
[1742507208818,0.2975568,84488.0,84487.0,0.00017746]
[1742507227033,0.1184238,84483.0,84482.0,4e-05]
[1742507227221,0.1184238,84483.0,84482.0,0.06274]
[1742507227533,0.1841238,84483.0,84482.0,0.06274]
[1742507228231,0.19628141,84483.0,84482.0,0.06274]
[1742507231933,0.19628141,84483.0,84482.0,0.0627]
[1742507234934,0.19628141,84483.0,84482.0,0.0312]
[1742507235133,0.1184266,84481.0,84480.0,4e-05]
[1742507235436,0.5971466,84481.0,84480.0,4e-05]
[1742507235636,0.6898466,84481.0,84480.0,4e-05]
[1742507235833,0.1184294,84479.0,84478.0,0.0632]
[1742507236033,0.57142,84481.0,84473.0,0.0328]
[1742507236034,0.118435,84475.0,84473.0,0.0328]
[1742507236339,0.1184448,84468.0,84467.0,4e-05]
[1742507236729,0.1799448,84468.0,84467.0,4e-05]
[1742507237433,0.2124448,84468.0,84467.0,4e-05]
[1742507237632,0.2134448,84468.0,84467.0,4e-05]
[1742507238231,0.1184532,84462.0,84461.0,0.0592269]
[1742507238830,0.1491532,84462.0,84461.0,0.0592269]
[1742507239033,0.1806532,84462.0,84461.0,0.0592269]
[1742507239342,0.1806532,84462.0,84461.0,0.1221269]
[1742507239531,0.1806532,84462.0,84461.0,0.1533269]
[1742507240141,0.1816532,84462.0,84461.0,0.1533269]
[1742507240532,0.1826532,84462.0,84461.0,0.1533269]
[1742507243839,0.1826532,84462.0,84461.0,0.0629]
[1742507244358,0.1826532,84462.0,84461.0,0.0319]
[1742507244644,0.118456,84460.0,84459.0,0.00011864]
[1742507244844,0.479256,84460.0,84459.0,0.00011864]
[1742507245043,0.544856,84460.0,84459.0,0.00011864]
[1742507246834,0.545856,84460.0,84459.0,0.00011864]
[1742507247148,0.546856,84460.0,84459.0,0.00011864]
[1742507252845,0.1184644,84454.0,84453.0,0.0631]
[1742507253034,0.2363044,84454.0,84453.0,0.0631]
[1742507253231,0.2976044,84454.0,84453.0,0.0631]
[1742507254048,0.2986044,84454.0,84453.0,0.0631]
[1742507254437,0.2996044,84454.0,84453.0,0.0631]
[1742507257243,0.31133764,84454.0,84453.0,0.0631]
[1742507259740,0.31133764,84454.0,84453.0,0.0326]
[1742507260446,0.31033764,84454.0,84453.0,0.0326]
[1742507260653,0.31133764,84454.0,84453.0,0.0326]
[1742507263548,0.31133764,84454.0,84453.0,0.0634]
[1742507264853,0.31133764,84454.0,84452.0,4e-05]
[1742507264854,0.1184658,84453.0,84452.0,4e-05]
[1742507265254,0.1809658,84453.0,84452.0,4e-05]
[1742507266254,0.5427658,84453.0,84452.0,4e-05]
[1742507266454,0.5427658,84453.0,84448.0,0.064]
[1742507266455,0.1184715,84449.0,84448.0,0.0332]
[1742507266854,0.1788715,84449.0,84448.0,0.0332]
[1742507267051,0.2096715,84449.0,84448.0,0.0332]
[1742507267855,0.2106715,84449.0,84448.0,0.0332]
[1742507268354,0.2116715,84449.0,84448.0,0.0332]
[1742507269254,0.2116715,84449.0,84443.0,0.03154]
[1742507269255,0.1184785,84444.0,84443.0,4e-05]
[1742507269648,0.5101785,84444.0,84443.0,4e-05]
[1742507269854,0.1184841,84440.0,84439.0,0.0317]
[1742507270360,0.1493841,84440.0,84439.0,0.0317]
[1742507270556,0.1805841,84440.0,84439.0,0.0317]
[1742507271157,0.1815841,84440.0,84439.0,0.0317]
[1742507271561,0.19355127,84440.0,84439.0,0.0317]
[1742507271862,0.19455127,84440.0,84439.0,0.0317]
[1742507272659,0.1825841,84440.0,84439.0,0.0317]
[1742507273068,0.1825841,84440.0,84439.0,0.064]
[1742507273668,0.2135841,84440.0,84439.0,0.064]
[1742507274059,0.1825841,84440.0,84439.0,0.064]
[1742507274456,0.19416612,84440.0,84439.0,0.0323]
[1742507275563,0.31080612,84440.0,84439.0,0.0323]
[1742507277754,0.31080612,84440.0,84439.0,0.0628]
[1742507279071,0.31080612,84440.0,84439.0,0.0323]
[1742507280165,0.1184855,84439.0,84438.0,0.1185269]
[1742507280571,0.1820855,84439.0,84438.0,0.1185269]
[1742507280766,0.1184883,84437.0,84436.0,0.1184493]
[1742507281271,0.2128883,84437.0,84436.0,0.1184493]
[1742507281665,0.2128883,84437.0,84436.0,0.1488493]
[1742507282457,0.2128883,84437.0,84436.0,0.1810493]
[1742507282664,0.2138883,84437.0,84436.0,0.1810493]
[1742507283171,0.2148883,84437.0,84436.0,0.1810493]
[1742507283374,0.2148883,84437.0,84436.0,0.1810897]
[1742507284265,0.2138883,84437.0,84436.0,0.1810897]
[1742507284472,0.2148883,84437.0,84436.0,0.1810897]
[1742507285470,0.1777423,84433.0,84431.0,4e-05]
[1742507285770,0.1817953,84432.0,84431.0,4e-05]
[1742507286070,0.1817953,84432.0,84431.0,0.1185367]
[1742507286375,0.1184967,84431.0,84430.0,0.1184978]
[1742507286571,0.1184967,84431.0,84430.0,0.1185378]
[1742507286777,0.1817967,84431.0,84430.0,0.1185378]
[1742507286969,0.1817967,84431.0,84430.0,0.13332267]
[1742507287272,0.1817967,84431.0,84430.0,0.16432267]
[1742507287470,0.1817967,84431.0,84430.0,0.19742267]
[1742507288070,0.1494967,84431.0,84430.0,0.19742267]
[1742507288572,0.1504967,84431.0,84430.0,0.19742267]
[1742507289674,0.1504967,84431.0,84430.0,0.1826378]
[1742507289675,0.1806967,84431.0,84430.0,0.1826378]
[1742507290467,0.2127967,84431.0,84430.0,0.1826378]
[1742507290667,0.2127967,84431.0,84430.0,0.1516378]
[1742507291476,0.2127967,84431.0,84430.0,0.1845378]
[1742507294077,0.2127967,84431.0,84430.0,0.1516378]
[1742507294471,0.2127967,84431.0,84430.0,0.1185378]
[1742507294666,0.2127967,84431.0,84430.0,0.1184978]
[1742507295073,0.2127967,84431.0,84430.0,0.1795978]
[1742507295478,0.2127967,84431.0,84430.0,0.1487978]
[1742507296085,0.2127967,84431.0,84430.0,0.1795978]
[1742507301296,0.2127967,84431.0,84430.0,0.1184978]
[1742507301497,0.2127967,84431.0,84430.0,0.1820978]
[1742507304490,0.2127967,84431.0,84430.0,0.1501978]
[1742507304994,0.2127967,84431.0,84430.0,0.1818978]
[1742507305797,0.2127967,84431.0,84430.0,0.19662618]
[1742507308204,0.2127967,84431.0,84430.0,0.1818978]
[1742507308597,0.2127967,84431.0,84430.0,0.1818981]
[1742507314407,0.2127967,84431.0,84430.0,0.0634]
[1742507318205,0.2127967,84431.0,84430.0,0.07815502]
[1742507319207,0.2127967,84431.0,84430.0,0.0634]
[1742507321301,0.2127967,84431.0,84430.0,0.0317]
[1742507321806,0.1184981,84430.0,84429.0,4e-05]
[1742507322004,0.4792981,84430.0,84429.0,4e-05]
[1742507322200,0.5423981,84430.0,84429.0,4e-05]
[1742507322899,0.5423981,84430.0,84429.0,0.03174]
[1742507323204,0.5433981,84430.0,84429.0,0.03174]
[1742507323410,0.5433981,84430.0,84429.0,0.04648891]
[1742507323604,0.5433981,84430.0,84429.0,0.01478891]
[1742507324112,0.5443981,84430.0,84429.0,0.01478891]
[1742507325714,0.5443981,84430.0,84429.0,0.01474891]
[1742507331417,0.118515,84418.0,84417.0,0.1185564]
[1742507331617,0.118515,84418.0,84417.0,0.13363892]
[1742507331816,0.183515,84418.0,84417.0,0.13363892]
[1742507332020,0.183515,84418.0,84417.0,0.16583892]
[1742507332712,0.216515,84418.0,84417.0,0.19633892]
[1742507333110,0.151515,84418.0,84417.0,0.19633892]
[1742507333512,0.183615,84418.0,84417.0,0.19633892]
[1742507334516,0.184615,84418.0,84417.0,0.19633892]
[1742507335017,0.183615,84418.0,84417.0,0.19633892]
[1742507335213,0.184615,84418.0,84417.0,0.19633892]
[1742507336920,0.184615,84418.0,84417.0,0.16583892]
[1742507337120,0.216115,84418.0,84417.0,0.04732252]
[1742507338621,0.215115,84418.0,84417.0,0.04732252]
[1742507338823,0.216115,84418.0,84417.0,0.07962252]
[1742507339124,0.216115,84418.0,84417.0,0.04732252]
[1742507339423,0.216115,84418.0,84417.0,0.16583892]
[1742507339819,0.216115,84418.0,84417.0,0.16579892]
[1742507340219,0.216115,84418.0,84417.0,0.04728252]
[1742507340928,0.216115,84418.0,84417.0,0.07738252]
[1742507341630,0.216115,84418.0,84417.0,0.04728252]
[1742507341823,0.216115,84418.0,84417.0,0.16579892]
[1742507342024,0.216115,84418.0,84417.0,0.19589892]
[1742507342225,0.216115,84418.0,84417.0,0.07738252]
[1742507342926,0.216115,84418.0,84417.0,0.04728252]
[1742507343317,0.216115,84418.0,84417.0,0.04711541]
[1742507343518,0.216115,84418.0,84417.0,0.07791541]
[1742507343729,0.216115,84418.0,84417.0,0.09267586]
[1742507345215,0.216115,84418.0,84417.0,0.21119226]
[1742507345637,0.216115,84418.0,84417.0,0.18039226]
[1742507345832,0.216115,84418.0,84417.0,0.21209226]
[1742507347323,0.216115,84418.0,84417.0,0.19717685]
[1742507347516,0.216115,84418.0,84417.0,0.21206354]
[1742507349535,0.216115,84418.0,84417.0,0.09354714]
[1742507351132,0.216115,84418.0,84417.0,0.21206354]
[1742507352737,0.216115,84418.0,84417.0,0.09354714]
[1742507353038,0.216115,84418.0,84417.0,0.06184714]
[1742507353339,0.216115,84418.0,84417.0,0.04708669]
[1742507354632,0.216115,84418.0,84417.0,0.0652]
[1742507361133,0.216115,84418.0,84417.0,0.0322]
[1742507361639,0.1185164,84417.0,84416.0,4e-05]
[1742507362129,0.1793164,84417.0,84416.0,4e-05]
[1742507363740,0.1803164,84417.0,84416.0,4e-05]
[1742507365236,0.1813164,84417.0,84416.0,4e-05]
[1742507367344,0.39359575,84417.0,84416.0,4e-05]
[1742507369848,0.1185192,84415.0,84414.0,0.0308]
[1742507370232,0.1185332,84405.0,84404.0,0.0118508]
[1742507370537,0.1185332,84405.0,84404.0,0.0306]
[1742507370736,0.1492332,84405.0,84404.0,0.0306]
[1742507371339,0.1492332,84405.0,84404.0,0.1491346]
[1742507371533,0.1807332,84405.0,84404.0,0.1491346]
[1742507371945,0.1817332,84405.0,84404.0,0.15808053]
[1742507372139,0.1817332,84405.0,84404.0,0.16971396]
[1742507372845,0.1827332,84405.0,84404.0,0.16971396]
[1742507373346,0.1827332,84405.0,84404.0,0.20201396]
[1742507374549,0.1817332,84405.0,84404.0,0.20201396]
[1742507374749,0.1827332,84405.0,84404.0,0.20201396]
[1742507383957,0.1827332,84405.0,84404.0,0.42201396]
[1742507403889,0.1827332,84405.0,84404.0,0.39141396]
[1742507406289,0.1827332,84405.0,84404.0,0.35911396]
[1742507406886,0.1827332,84405.0,84404.0,0.42071396]
[1742507418391,0.1827332,84405.0,84404.0,0.1185346]
[1742507422302,0.1827332,84405.0,84404.0,0.1506346]
[1742507423098,0.1827332,84405.0,84404.0,0.1819346]
[1742507423303,0.1827332,84405.0,84404.0,0.1506346]
[1742507423901,0.1827332,84405.0,84404.0,0.3906346]
[1742507424101,0.1827332,84405.0,84404.0,0.4219346]
[1742507429106,0.1827332,84405.0,84404.0,0.3906346]
[1742507429506,0.1827332,84405.0,84404.0,0.1185346]
[1742507430203,0.1827332,84405.0,84404.0,0.1516346]
[1742507431204,0.1827332,84405.0,84404.0,0.1185346]
[1742507432501,0.1827332,84405.0,84404.0,0.1496346]
[1742507432699,0.1827332,84405.0,84404.0,0.1185346]
[1742507436003,0.1827332,84405.0,84404.0,0.1489346]
[1742507436612,0.1827332,84405.0,84404.0,0.1820346]
[1742507448025,0.1827332,84405.0,84404.0,0.19674481]
[1742507448926,0.1827332,84405.0,84404.0,0.1820346]
[1742507452930,0.1827332,84405.0,84404.0,0.1185346]
[1742507453522,0.1827332,84405.0,84404.0,0.1501346]
[1742507453723,0.1827332,84405.0,84404.0,0.1803346]
[1742507454832,0.1827332,84405.0,84404.0,0.19505222]
[1742507455431,0.1827332,84405.0,84404.0,0.19505221]
[1742507457934,0.1827332,84405.0,84404.0,0.19515785]
[1742507459524,0.1827332,84405.0,84404.0,0.16495785]
[1742507460230,0.1827332,84405.0,84404.0,0.19555785]
[1742507462734,0.1827332,84405.0,84404.0,0.1807346]
[1742507462938,0.1827332,84405.0,84404.0,0.19554406]
[1742507464940,0.1827332,84405.0,84404.0,0.19549963]
[1742507468728,0.1827332,84405.0,84404.0,0.1955366]
[1742507470957,0.1827332,84405.0,84404.0,0.195537]
[1742507471147,0.1827332,84405.0,84404.0,0.19553808]
[1742507474649,0.1827332,84405.0,84404.0,0.21029864]
[1742507477259,0.1827332,84405.0,84404.0,0.21039664]
[1742507485869,0.1827332,84405.0,84404.0,0.21038438]
[1742507487061,0.1827332,84405.0,84404.0,0.19549516]
[1742507487981,0.1827332,84405.0,84404.0,0.21039971]
[1742507488269,0.1827332,84405.0,84404.0,0.19549516]
[1742507488863,0.1827332,84405.0,84404.0,0.21041314]
[1742507491461,0.1827332,84405.0,84404.0,0.21040346]
[1742507493177,0.1827332,84405.0,84404.0,0.17980346]
[1742507493675,0.1827332,84405.0,84404.0,0.1650429]
[1742507494072,0.1827332,84405.0,84404.0,0.16484164]
[1742507494667,0.1827332,84405.0,84404.0,0.1501346]
[1742507495269,0.1827332,84405.0,84402.0,0.1185362]
[1742507495270,0.118536,84403.0,84402.0,0.1185362]
[1742507495687,0.181036,84403.0,84402.0,0.1185362]
[1742507496573,0.182036,84403.0,84402.0,0.1185362]
[1742507497680,0.183036,84403.0,84402.0,0.1185362]
[1742507497972,0.183036,84403.0,84402.0,0.1513362]
[1742507499278,0.183036,84403.0,84402.0,0.1185362]
[1742507500683,0.183036,84403.0,84402.0,0.1512362]
[1742507500877,0.183036,84403.0,84402.0,0.1840362]
[1742507501581,0.183036,84403.0,84402.0,0.1512362]
[1742507501780,0.183036,84403.0,84402.0,0.16602604]
[1742507505386,0.183036,84403.0,84402.0,0.19892604]
[1742507511199,0.183036,84403.0,84402.0,0.19884533]
[1742507516594,0.183036,84403.0,84402.0,0.16594533]
[1742507516896,0.183036,84403.0,84402.0,0.16599687]
[1742507517596,0.183036,84403.0,84402.0,0.19839687]
[1742507520903,0.183036,84403.0,84402.0,0.1836362]
[1742507528902,0.0645,84403.0,84402.0,0.1836362]
[1742507529616,0.183036,84403.0,84402.0,0.1836362]
[1742507537822,0.0645,84403.0,84402.0,0.5571562]
[1742507538208,0.21257388,84412.0,84411.0,0.1185248]
[1742507538613,0.21257388,84412.0,84411.0,0.3282448]
[1742507539311,0.21357388,84412.0,84411.0,0.3282448]
[1742507539913,0.21457388,84412.0,84411.0,0.3282448]
[1742507540620,0.002,84412.0,84411.0,0.34005872]
[1742507552622,0.0333,84412.0,84411.0,0.34005872]
[1742507553714,0.002,84412.0,84411.0,0.34005872]
[1742507553918,0.0318,84420.0,84419.0,0.1185136]
[1742507554119,0.0318,84420.0,84419.0,0.5928336]
[1742507555421,0.0318,84420.0,84419.0,0.5948336]
[1742507555623,0.0318,84420.0,84419.0,0.5958336]
[1742507557025,0.0651,84420.0,84419.0,0.5958336]
[1742507568637,0.0651,84420.0,84419.0,0.6283336]
[1742507571840,0.0651,84420.0,84419.0,0.6608336]
[1742507579455,0.00017767,84423.0,84422.0,0.1185093]
[1742507579656,0.00017767,84423.0,84422.0,0.1833093]
[1742507580654,0.00017767,84423.0,84422.0,0.1853093]
[1742507582147,0.00017767,84423.0,84422.0,0.1873093]
[1742507588858,0.03077767,84423.0,84422.0,0.1873093]
[1742507593767,0.06277767,84423.0,84422.0,0.1873093]
[1742507593965,0.18128557,84423.0,84422.0,0.1873093]
[1742507594151,0.18128557,84423.0,84422.0,0.1543093]
[1742507594358,0.21277767,84423.0,84413.0,0.28445781]
[1742507594658,0.21277767,84423.0,84400.0,0.52668672]
[1742507594659,0.1185388,84401.0,84400.0,0.52732672]
[1742507594859,0.5928188,84401.0,84400.0,0.22243262]
[1742507595063,1.1673188,84401.0,84400.0,0.09383262]
[1742507595252,1.1673188,84401.0,84400.0,0.04817132]
[1742507595452,0.1185444,84397.0,84396.0,0.0006]
[1742507595660,0.1185501,84393.0,84392.0,0.49840118]
[1742507595853,0.5928301,84393.0,84392.0,0.49840118]
[1742507596061,0.7428301,84393.0,84392.0,0.49780118]
[1742507596659,0.75166151,84393.0,84392.0,0.49780118]
[1742507597264,0.75166151,84393.0,84392.0,0.49980118]
[1742507598571,0.5928301,84393.0,84392.0,0.49980118]
[1742507598769,0.4793501,84393.0,84392.0,0.49980118]
[1742507598973,0.6504764,84393.0,84392.0,0.0646]
[1742507599373,0.6504764,84393.0,84392.0,0.0319]
[1742507599972,0.6504764,84393.0,84392.0,0.1504515]
[1742507600961,0.6504764,84393.0,84392.0,0.0319]
[1742507602170,0.5928301,84393.0,84392.0,0.0319]
[1742507602375,0.5928701,84393.0,84392.0,0.0319]
[1742507602672,0.5928701,84393.0,84392.0,0.0643]
[1742507605375,0.73342161,84393.0,84392.0,0.0643]
[1742507608977,0.5928701,84393.0,84392.0,0.0643]
[1742507611478,0.69821376,84393.0,84392.0,0.0643]
[1742507615776,0.5928701,84393.0,84392.0,0.0643]
[1742507619486,0.73342161,84393.0,84392.0,0.0643]
[1742507623892,0.65051333,84393.0,84392.0,0.0643]
[1742507626281,0.65051333,84393.0,84392.0,0.1828515]
[1742507627381,0.97209128,84393.0,84392.0,0.1828515]
[1742507632091,0.97209128,84393.0,84392.0,0.0643]
[1742507632392,0.97209128,84393.0,84392.0,0.01841879]
[1742507634698,1.00409128,84393.0,84392.0,0.01841879]
[1742507635489,1.01809128,84393.0,84392.0,0.05031879]
[1742507639391,0.65729128,84393.0,84392.0,0.05031879]
[1742507639589,1.37889128,84393.0,84392.0,0.05031879]
[1742507642694,1.36489128,84393.0,84392.0,0.05031879]
[1742507644604,1.37889128,84393.0,84392.0,0.05031879]